[Event "Championnat d'Europe de Blitz"]
[Date "2024.12.09"]
[White "Peyrer, Konstantin"]
[Black "Stanojoski, Zvonko"]
[WhiteElo "2440"]
[BlackElo "2401"]
[Round "3.25"]
[Result "1-0"]
[TimeControl "180+2"]

1. Nf3 {[%emt 00:00:01] [%clk 00:03:02]} c5 {[%emt 00:00:06]} 2. c4 {[%clk
00:03:01]} g6 {[%emt 00:00:01] [%clk 00:03:02]} 3. g3 {[%emt 00:00:02] [%clk
00:03:01]} Bg7 {[%emt 00:00:01] [%clk 00:03:02]} 4. Bg2 {[%emt 00:00:01] [%clk
00:03:02]} Nf6 {[%emt 00:00:02] [%clk 00:03:02]} 5. Nc3 {[%emt 00:00:02] [%clk
00:03:03]} O-O {[%emt 00:00:02] [%clk 00:03:02]} 6. O-O {[%emt 00:00:02] [%clk
00:03:03]} Nc6 {[%emt 00:00:02] [%clk 00:03:02]} 7. d4 {[%emt 00:00:01] [%clk
00:03:03]} cxd4 {[%emt 00:00:02] [%clk 00:03:03]} 8. Nxd4 {[%clk 00:03:04]} Ng4
{[%emt 00:00:07] [%clk 00:02:58]} 9. Nc2 {[%emt 00:00:08] [%clk 00:02:57]} d6
{[%emt 00:00:07] [%clk 00:02:54]} 10. Bd2 {[%emt 00:00:05] [%clk 00:02:54]} Bd7
{[%emt 00:00:15] [%clk 00:02:41]} 11. Rc1 {[%emt 00:00:05] [%clk 00:02:51]} Rc8
{[%emt 00:00:01] [%clk 00:02:41]} 12. b3 {[%emt 00:00:05] [%clk 00:02:49]} a6
{[%emt 00:00:01] [%clk 00:02:43]} 13. e4 {[%emt 00:00:07] [%clk 00:02:43]} Nf6
{[%emt 00:00:07] [%clk 00:02:38]} 14. Ne3 {[%emt 00:00:11] [%clk 00:02:34]} Nd4
{[%emt 00:00:07] [%clk 00:02:33]} 15. Ncd5 {[%emt 00:00:07] [%clk 00:02:29]} Bc6
{[%emt 00:00:54] [%clk 00:01:41]} 16. Bc3 {[%emt 00:00:06] [%clk 00:02:25]} e5
{[%emt 00:00:03] [%clk 00:01:40]} 17. Qd2 {[%emt 00:00:15] [%clk 00:02:12]} Bxd5
{[%emt 00:00:07] [%clk 00:01:35]} 18. cxd5 {[%emt 00:00:30] [%clk 00:01:44]} Nd7
{[%emt 00:00:02] [%clk 00:01:35]} 19. Nc4 {[%emt 00:00:04] [%clk 00:01:41]} Nc5
{[%emt 00:00:07] [%clk 00:01:30]} 20. Ba5 {[%emt 00:00:04] [%clk 00:01:40]} Qe7
{[%emt 00:00:06] [%clk 00:01:26]} 21. Nb6 {[%emt 00:00:04] [%clk 00:01:37]} Rb8
{[%emt 00:00:10] [%clk 00:01:19]} 22. b4 {[%emt 00:00:03] [%clk 00:01:36]} Nd7
{[%emt 00:00:19] [%clk 00:01:02]} 23. Rc7 {[%emt 00:00:03]} Rfd8 {[%clk
00:01:03]} 24. Rfc1 {[%emt 00:00:06] [%clk 00:01:31]} Nb5 {[%emt 00:00:02] [%clk
00:01:04]} 25. Nxd7 {[%emt 00:00:09] [%clk 00:01:24]} Rxd7 {[%emt 00:00:06]
[%clk 00:00:59]} 26. Rc8+ {[%emt 00:00:02] [%clk 00:01:24]} Rxc8 {[%emt
00:00:04] [%clk 00:00:58]} 27. Rxc8+ {[%clk 00:01:25]} Bf8 {[%emt 00:00:02]
[%clk 00:00:58]} 28. Bh3 {[%emt 00:00:13] [%clk 00:01:14]} Nd4 {[%emt 00:00:13]
[%clk 00:00:47]} 29. Qd3 {[%clk 00:01:15]} b6 {[%emt 00:00:08] [%clk 00:00:41]}
30. Bxb6 {[%emt 00:00:01] [%clk 00:01:16]} Rb7 {[%clk 00:00:43]} 31. Bxd4 {[%emt
00:00:03] [%clk 00:01:14]} exd4 {[%emt 00:00:02] [%clk 00:00:42]} 32. Qxd4
{[%emt 00:00:05] [%clk 00:01:12]} Rc7 {[%emt 00:00:01] [%clk 00:00:44]} 33. Ra8
{[%emt 00:00:03] [%clk 00:01:10]} Rc1+ {[%emt 00:00:18] [%clk 00:00:28]} 34. Kg2
{[%emt 00:00:08] [%clk 00:01:04]} Qb7 {[%clk 00:00:30]} 35. Qd2 {[%emt 00:00:29]
[%clk 00:00:37]} Rb1 {[%emt 00:00:09] [%clk 00:00:20]} 36. Rc8 {[%emt 00:00:17]
[%clk 00:00:25]} Qb5 {[%emt 00:00:02] [%clk 00:00:21]} 37. Rc1 {[%emt 00:00:10]
[%clk 00:00:17]} Rxb4 {[%emt 00:00:06] [%clk 00:00:16]} 38. Qc2 {[%emt 00:00:03]
[%clk 00:00:16]} Be7 {[%emt 00:00:09] [%clk 00:00:09]} 39. Bg4 {[%emt 00:00:02]
[%clk 00:00:15]} Kg7 {[%emt 00:00:02] [%clk 00:00:10]} 40. Be2 {[%emt 00:00:02]
[%clk 00:00:16]} Qb6 {[%emt 00:00:01] [%clk 00:00:11]} 41. Qc6 {[%emt 00:00:10]
[%clk 00:00:07]} Qd4 {[%emt 00:00:01] [%clk 00:00:11]} 42. Bf3 {[%emt 00:00:03]
[%clk 00:00:06]} Bf6 {[%emt 00:00:02] [%clk 00:00:12]} 43. Rc2 {[%emt 00:00:03]
[%clk 00:00:05]} Qd3 {[%emt 00:00:02] [%clk 00:00:12]} 44. Qc8 {[%emt 00:00:03]
[%clk 00:00:04]} Ra4 {[%emt 00:00:03] [%clk 00:00:11]} 45. Qc6 {[%emt 00:00:03]
[%clk 00:00:03]} Ra3 {[%clk 00:00:12]} 46. Be2 {[%clk 00:00:04]} Qxe4+ {[%emt
00:00:01] [%clk 00:00:12]} 47. Kg1 {[%emt 00:00:03] [%clk 00:00:04]} Qe5 {[%emt
00:00:05] [%clk 00:00:08]} 48. Bf1 {[%emt 00:00:02] [%clk 00:00:04]} Ra5 {[%emt
00:00:04] [%clk 00:00:07]} 49. Bxa6 {[%emt 00:00:03] [%clk 00:00:03]} Rxd5
{[%emt 00:00:01] [%clk 00:00:07]} 50. Bf1 {[%emt 00:00:01] [%clk 00:00:04]} Rd1
{[%clk 00:00:08]} 51. Qc4 {[%clk 00:00:06]} d5 {[%emt 00:00:02] [%clk 00:00:09]}
52. Qb5 {[%emt 00:00:01] [%clk 00:00:06]} Qa1 {[%emt 00:00:02] [%clk 00:00:09]}
53. Qe2 {[%emt 00:00:04] [%clk 00:00:04]} d4 {[%emt 00:00:01] [%clk 00:00:10]}
54. Rd2 {[%clk 00:00:05]} Rxd2 {[%emt 00:00:06] [%clk 00:00:06]} 55. Qxd2 {[%emt
00:00:01] [%clk 00:00:06]} Qc3 {[%emt 00:00:03] [%clk 00:00:05]} 56. Qd1 {[%clk
00:00:08]} 1-0

[Site "Europe Echecs"]

[Event "Championnat d'Europe de Blitz"]
[Date "2024.12.09"]
[White "Fromm, Marius"]
[Black "Koelle, Tobias"]
[WhiteElo "2459"]
[BlackElo "2437"]
[Round "3.26"]
[Result "0-1"]
[TimeControl "180+2"]

1. c4 {[%clk 00:03:03]} e5 {[%emt 00:00:06] [%clk 00:03:00]} 2. Nc3 {[%emt
00:00:09] [%clk 00:02:55]} Nf6 {[%clk 00:03:01]} 3. Nf3 {[%emt 00:00:01] [%clk
00:02:56]} e4 {[%emt 00:00:02] [%clk 00:03:01]} 4. Ng5 {[%emt 00:00:02] [%clk
00:02:56]} c6 {[%clk 00:03:02]} 5. Ngxe4 {[%clk 00:02:57]} Nxe4 {[%emt 00:00:01]
[%clk 00:03:04]} 6. Nxe4 {[%clk 00:02:58]} d5 {[%clk 00:03:05]} 7. cxd5 {[%emt
00:00:02] [%clk 00:02:58]} cxd5 {[%clk 00:03:07]} 8. Ng3 {[%emt 00:00:02] [%clk
00:02:58]} h5 {[%emt 00:00:01] [%clk 00:03:08]} 9. e3 {[%emt 00:00:06] [%clk
00:02:54]} h4 {[%clk 00:03:09]} 10. Ne2 {[%emt 00:00:01] [%clk 00:02:55]} Nc6
{[%emt 00:00:03] [%clk 00:03:08]} 11. d4 {[%emt 00:00:03] [%clk 00:02:53]} Bd6
{[%emt 00:00:01] [%clk 00:03:09]} 12. Nc3 {[%emt 00:00:09] [%clk 00:02:46]} Qf6
{[%emt 00:00:08] [%clk 00:03:03]} 13. Bd3 {[%emt 00:00:37] [%clk 00:02:11]} Be6
{[%emt 00:00:10] [%clk 00:02:56]} 14. Qf3 {[%emt 00:00:13] [%clk 00:02:01]} Qd8
{[%emt 00:00:24] [%clk 00:02:33]} 15. Bd2 {[%emt 00:00:08] [%clk 00:01:55]} Bc7
{[%emt 00:00:11] [%clk 00:02:24]} 16. h3 {[%emt 00:00:17] [%clk 00:01:40]} Qd7
{[%emt 00:00:03] [%clk 00:02:23]} 17. Rc1 {[%emt 00:00:54] [%clk 00:00:48]} Rh6
{[%clk 00:02:24]} 18. a3 {[%emt 00:00:20] [%clk 00:00:30]} Kf8 {[%emt 00:00:10]
[%clk 00:02:16]} 19. Na4 {[%emt 00:00:11] [%clk 00:00:22]} Qe7 {[%emt 00:00:10]
[%clk 00:02:07]} 20. Nc5 {[%emt 00:00:01] [%clk 00:00:23]} Re8 {[%emt 00:00:11]
[%clk 00:01:58]} 21. Nxe6+ {[%emt 00:00:03] [%clk 00:00:22]} Qxe6 {[%clk
00:01:59]} 22. Kd1 {[%emt 00:00:09] [%clk 00:00:16]} Kg8 {[%emt 00:00:05] [%clk
00:01:56]} 23. Be1 {[%emt 00:00:07] [%clk 00:00:12]} Ba5 {[%emt 00:00:10] [%clk
00:01:47]} 24. Qf5 {[%emt 00:00:06] [%clk 00:00:09]} Qd6 {[%emt 00:00:06] [%clk
00:01:41]} 25. Rc5 {[%emt 00:00:02] [%clk 00:00:10]} Bb6 {[%emt 00:00:21] [%clk
00:01:23]} 26. Rxd5 {[%emt 00:00:02] [%clk 00:00:10]} Qf8 {[%clk 00:01:24]} 27.
Qf3 {[%emt 00:00:05] [%clk 00:00:06]} Rd8 {[%emt 00:00:13] [%clk 00:01:13]} 28.
Rh5 {[%clk 00:00:07]} Rxh5 {[%emt 00:00:16] [%clk 00:00:59]} 29. Qxh5 {[%emt
00:00:01] [%clk 00:00:08]} g6 {[%emt 00:00:01] [%clk 00:01:00]} 30. Qxh4 {[%clk
00:00:09]} Bxd4 {[%clk 00:01:02]} 31. exd4 {[%emt 00:00:06] [%clk 00:00:04]}
Rxd4 {[%emt 00:00:01] [%clk 00:01:03]} 32. Qg3 {[%emt 00:00:01] [%clk 00:00:05]}
Rd5 {[%emt 00:00:14] [%clk 00:00:51]} 33. Bc3 {[%emt 00:00:02] [%clk 00:00:05]}
b5 {[%emt 00:00:08] [%clk 00:00:45]} 34. Kc2 {[%emt 00:00:01] [%clk 00:00:06]}
a5 {[%clk 00:00:46]} 35. Be4 {[%emt 00:00:03] [%clk 00:00:05]} Rc5 {[%emt
00:00:01] [%clk 00:00:47]} 36. Bxc6 {[%emt 00:00:01] [%clk 00:00:06]} Rxc6
{[%clk 00:00:49]} 37. Qf3 {[%emt 00:00:02] [%clk 00:00:06]} Qc8 {[%emt 00:00:02]
[%clk 00:00:48]} 38. Kb1 {[%emt 00:00:02] [%clk 00:00:06]} b4 {[%emt 00:00:04]
[%clk 00:00:47]} 39. axb4 {[%emt 00:00:01] [%clk 00:00:07]} axb4 {[%clk
00:00:48]} 40. Bxb4 {[%clk 00:00:08]} Ra6 {[%clk 00:00:50]} 41. Bc3 {[%emt
00:00:04] [%clk 00:00:06]} Qe6 {[%clk 00:00:51]} 42. Re1 {[%emt 00:00:03] [%clk
00:00:05]} Qa2+ {[%clk 00:00:53]} 43. Kc1 {[%emt 00:00:02] [%clk 00:00:05]} Qa1+
44. Kc2 {[%emt 00:00:01] [%clk 00:00:05]} Qa4+ {[%emt 00:00:01] [%clk 00:00:55]}
45. Kd2 {[%emt 00:00:05] [%clk 00:00:00]} Rd6+ 0-1

[Site "Europe Echecs"]

[Event "Championnat d'Europe de Blitz"]
[Date "2024.12.09"]
[White "Livaic, Leon"]
[Black "Narva, Mai"]
[WhiteElo "2560"]
[BlackElo "2413"]
[Round "3.27"]
[Result "1-0"]
[TimeControl "180+2"]

1. d4 {[%emt 00:00:03] [%clk 00:03:02]} Nf6 {[%clk 00:03:03]} 2. c4 {[%clk
00:03:03]} g6 {[%emt 00:00:02] [%clk 00:03:04]} 3. Nc3 {[%emt 00:00:01] [%clk
00:03:03]} Bg7 {[%emt 00:00:02] [%clk 00:03:04]} 4. e4 {[%emt 00:00:01] [%clk
00:03:04]} d6 {[%emt 00:00:01] [%clk 00:03:04]} 5. h3 {[%emt 00:00:02] [%clk
00:03:04]} O-O {[%emt 00:00:04] [%clk 00:03:02]} 6. Be3 {[%clk 00:03:05]} Nc6
{[%emt 00:00:08] [%clk 00:02:57]} 7. d5 {[%emt 00:00:05] [%clk 00:03:02]} Ne5
{[%emt 00:00:02] [%clk 00:02:57]} 8. f4 {[%emt 00:00:02] [%clk 00:03:02]} Ned7
{[%emt 00:00:01] [%clk 00:02:57]} 9. g4 {[%emt 00:00:02] [%clk 00:03:03]} c6
{[%emt 00:00:38] [%clk 00:02:21]} 10. Nf3 {[%emt 00:00:01] [%clk 00:03:04]} cxd5
{[%emt 00:00:13] [%clk 00:02:09]} 11. cxd5 {[%clk 00:03:05]} Qa5 {[%emt
00:00:09] [%clk 00:02:02]} 12. Bd3 {[%emt 00:01:07] [%clk 00:02:00]} Nc5 {[%emt
00:00:10] [%clk 00:01:54]} 13. O-O {[%emt 00:00:04] [%clk 00:01:58]} b6 {[%emt
00:01:03] [%clk 00:00:53]} 14. Re1 {[%emt 00:00:28] [%clk 00:01:31]} Nxd3 {[%emt
00:00:23] [%clk 00:00:33]} 15. Qxd3 {[%emt 00:00:01] [%clk 00:01:32]} Ba6 {[%emt
00:00:02] [%clk 00:00:33]} 16. Qd2 {[%emt 00:00:06] [%clk 00:01:28]} Rfd8 {[%emt
00:00:08] [%clk 00:00:27]} 17. Nd4 {[%emt 00:00:07] [%clk 00:01:23]} Bb7 {[%emt
00:00:02] [%clk 00:00:28]} 18. a3 {[%emt 00:00:08] [%clk 00:01:17]} Rac8 {[%emt
00:00:07] [%clk 00:00:22]} 19. Rec1 {[%emt 00:00:17] [%clk 00:01:02]} Qa6 {[%emt
00:00:04] [%clk 00:00:20]} 20. b4 {[%emt 00:00:23] [%clk 00:00:42]} Rxc3 {[%emt
00:00:10] [%clk 00:00:12]} 21. Qxc3 {[%emt 00:00:05] [%clk 00:00:39]} Rc8 {[%emt
00:00:08] [%clk 00:00:06]} 22. b5 {[%emt 00:00:16] [%clk 00:00:25]} Rxc3 {[%emt
00:00:02] [%clk 00:00:06]} 23. bxa6 {[%emt 00:00:01] [%clk 00:00:26]} Rxc1+
{[%emt 00:00:01] [%clk 00:00:06]} 24. Rxc1 {[%clk 00:00:27]} Bxa6 {[%emt
00:00:07]} 25. Rc7 {[%clk 00:00:23]} Nxe4 {[%emt 00:00:03] [%clk 00:00:06]} 26.
Nc6 {[%emt 00:00:07] [%clk 00:00:18]} Bf6 {[%emt 00:00:04] [%clk 00:00:04]} 27.
g5 {[%emt 00:00:02] [%clk 00:00:18]} Bb2 {[%emt 00:00:01] [%clk 00:00:04]} 28.
Rxa7 {[%emt 00:00:07] [%clk 00:00:14]} Bc4 {[%emt 00:00:01] [%clk 00:00:05]} 29.
Nxe7+ {[%emt 00:00:07] [%clk 00:00:09]} Kg7 {[%clk 00:00:07]} 30. Rb7 {[%emt
00:00:05] [%clk 00:00:06]} b5 {[%emt 00:00:02] [%clk 00:00:07]} 31. a4 {[%emt
00:00:02] [%clk 00:00:07]} Ng3 {[%emt 00:00:06] [%clk 00:00:03]} 32. axb5 {[%emt
00:00:04] [%clk 00:00:05]} Ne2+ {[%emt 00:00:01] [%clk 00:00:03]} 33. Kf2 {[%clk
00:00:06]} Nd4 {[%emt 00:00:01] [%clk 00:00:04]} 34. b6 {[%emt 00:00:02] [%clk
00:00:06]} Nc2 {[%emt 00:00:02] [%clk 00:00:04]} 35. Rb8 {[%emt 00:00:02] [%clk
00:00:07]} h6 {[%emt 00:00:02] [%clk 00:00:04]} 36. b7 {[%emt 00:00:02] [%clk
00:00:07]} hxg5 {[%emt 00:00:02] [%clk 00:00:04]} 37. Rg8+ {[%emt 00:00:01]
[%clk 00:00:08]} 1-0

[Site "Europe Echecs"]

[Event "Championnat d'Europe de Blitz"]
[Date "2024.12.09"]
[White "Saric, Ante"]
[Black "Alienkin, Aleksander"]
[WhiteElo "2482"]
[BlackElo "2337"]
[Round "3.28"]
[Result "1-0"]
[TimeControl "180+2"]

1. Nf3 {[%emt 00:15:14] [%clk 00:03:03]} Nf6 {[%emt 00:00:01] [%clk 00:03:03]}
2. g3 {[%emt 00:00:02] [%clk 00:03:04]} b6 {[%clk 00:03:04]} 3. Bg2 {[%clk
00:03:04]} Bb7 {[%clk 00:03:05]} 4. O-O {[%emt 00:00:04] [%clk 00:03:03]} c5
{[%emt 00:00:03] [%clk 00:03:04]} 5. c4 {[%emt 00:00:01] [%clk 00:03:03]} g6
{[%emt 00:00:04] [%clk 00:03:03]} 6. d4 {[%emt 00:00:05] [%clk 00:03:00]} cxd4
{[%emt 00:00:02] [%clk 00:03:02]} 7. Qxd4 {[%emt 00:00:01] [%clk 00:03:01]} Bg7
{[%emt 00:00:02] [%clk 00:03:02]} 8. Nc3 {[%emt 00:00:01] [%clk 00:03:02]} O-O
{[%emt 00:00:02] [%clk 00:03:01]} 9. Qh4 {[%emt 00:00:05] [%clk 00:03:00]} d6
{[%emt 00:00:08] [%clk 00:02:55]} 10. Bh6 {[%emt 00:00:04] [%clk 00:02:58]} Nbd7
{[%emt 00:00:02] [%clk 00:02:54]} 11. Rfd1 {[%emt 00:00:05] [%clk 00:02:56]} Rc8
{[%emt 00:00:04] [%clk 00:02:52]} 12. b3 {[%emt 00:00:08] [%clk 00:02:50]} Rc5
{[%emt 00:00:15] [%clk 00:02:39]} 13. Bxg7 {[%emt 00:00:10] [%clk 00:02:42]}
Kxg7 {[%emt 00:00:04] [%clk 00:02:37]} 14. Rac1 {[%emt 00:00:16] [%clk
00:02:28]} Qa8 {[%emt 00:00:04] [%clk 00:02:35]} 15. Qd4 {[%emt 00:00:13] [%clk
00:02:17]} Rfc8 {[%emt 00:00:05] [%clk 00:02:33]} 16. Ne1 {[%emt 00:00:12] [%clk
00:02:07]} Bxg2 {[%emt 00:00:04] [%clk 00:02:30]} 17. Nxg2 {[%emt 00:00:01]
[%clk 00:02:08]} Kg8 {[%emt 00:00:04] [%clk 00:02:28]} 18. Ne3 {[%emt 00:00:02]
[%clk 00:02:08]} a6 {[%emt 00:00:08] [%clk 00:02:22]} 19. Ncd5 {[%emt 00:00:14]
[%clk 00:01:56]} Re8 {[%emt 00:00:04] [%clk 00:02:19]} 20. a4 {[%emt 00:00:16]
[%clk 00:01:43]} a5 {[%emt 00:00:12] [%clk 00:02:09]} 21. Rc3 {[%emt 00:00:11]
[%clk 00:01:34]} Nxd5 {[%emt 00:00:10] [%clk 00:02:01]} 22. Nxd5 {[%emt
00:00:02] [%clk 00:01:34]} Qb7 {[%emt 00:00:07] [%clk 00:01:57]} 23. Re3 {[%emt
00:00:09] [%clk 00:01:27]} e5 {[%emt 00:00:13] [%clk 00:01:45]} 24. Qh4 {[%emt
00:00:15] [%clk 00:01:14]} Kg7 {[%emt 00:00:05] [%clk 00:01:42]} 25. Red3 {[%emt
00:00:08] [%clk 00:01:08]} e4 {[%emt 00:00:05] [%clk 00:01:38]} 26. Rd4 {[%emt
00:00:01] [%clk 00:01:09]} f5 {[%emt 00:00:03] [%clk 00:01:37]} 27. Ne3 {[%emt
00:00:08] [%clk 00:01:03]} Rc6 {[%emt 00:00:06] [%clk 00:01:34]} 28. Rxd6 {[%emt
00:00:02] [%clk 00:01:03]} Rxd6 {[%emt 00:00:01] [%clk 00:01:35]} 29. Rxd6
{[%clk 00:01:04]} Qc7 {[%emt 00:00:06] [%clk 00:01:31]} 30. Rd1 {[%emt 00:00:12]
[%clk 00:00:54]} Nc5 {[%emt 00:00:03] [%clk 00:01:31]} 31. Qg5 {[%emt 00:00:18]
[%clk 00:00:38]} Qf7 {[%emt 00:00:21]} 32. Rd6 {[%clk 00:00:26]} Ne6 {[%emt
00:00:08] [%clk 00:01:19]} 33. Qh4 {[%emt 00:00:02] [%clk 00:00:26]} Qc7 {[%emt
00:00:08] [%clk 00:01:13]} 34. Rd1 {[%emt 00:00:06] [%clk 00:00:23]} Nc5 {[%emt
00:00:04] [%clk 00:01:10]} 35. Qg5 {[%emt 00:00:06] [%clk 00:00:20]} Qf7 {[%emt
00:00:09] [%clk 00:01:02]} 36. Nd5 {[%emt 00:00:01] [%clk 00:00:21]} Ne6 {[%emt
00:00:03] [%clk 00:01:01]} 37. Qe3 {[%emt 00:00:02] [%clk 00:00:21]} f4 {[%emt
00:00:03] [%clk 00:01:00]} 38. Nxf4 {[%emt 00:00:01] [%clk 00:00:22]} Nc5 {[%emt
00:00:04] [%clk 00:00:57]} 39. Nd5 {[%emt 00:00:03] [%clk 00:00:22]} Rf8 {[%emt
00:00:04] [%clk 00:00:55]} 40. Nxb6 {[%emt 00:00:03] [%clk 00:00:20]} 1-0

[Site "Europe Echecs"]

[Event "Championnat d'Europe de Blitz"]
[Date "2024.12.09"]
[White "Bulmaga, Irina"]
[Black "Janik, Igor"]
[WhiteElo "2386"]
[BlackElo "2515"]
[Round "3.29"]
[Result "1-0"]
[TimeControl "180+2"]

1. e4 {[%emt 00:00:02] [%clk 00:03:02]} c6 {[%emt 00:00:01] [%clk 00:03:03]} 2.
d4 {[%emt 00:00:03] [%clk 00:03:02]} d5 {[%clk 00:03:04]} 3. e5 {[%emt 00:00:02]
[%clk 00:03:03]} c5 {[%emt 00:00:01] [%clk 00:03:05]} 4. dxc5 {[%emt 00:00:02]
[%clk 00:03:03]} Nc6 {[%emt 00:00:01] [%clk 00:03:06]} 5. f4 {[%emt 00:00:03]
[%clk 00:03:02]} h5 {[%emt 00:00:05] [%clk 00:03:03]} 6. Nf3 {[%emt 00:00:12]
[%clk 00:02:52]} Bg4 {[%emt 00:00:01] [%clk 00:03:03]} 7. c3 {[%emt 00:00:04]
[%clk 00:02:50]} e6 {[%emt 00:00:01] [%clk 00:03:04]} 8. Be3 {[%emt 00:00:02]
[%clk 00:02:50]} Nge7 {[%emt 00:00:02] [%clk 00:03:04]} 9. Nbd2 {[%emt 00:00:06]
[%clk 00:02:46]} Nf5 {[%emt 00:00:05] [%clk 00:03:01]} 10. Bf2 {[%emt 00:00:03]
[%clk 00:02:45]} Be7 {[%emt 00:00:01] [%clk 00:03:02]} 11. h3 {[%emt 00:00:05]
[%clk 00:02:43]} Bxf3 {[%emt 00:00:01] [%clk 00:03:02]} 12. Nxf3 {[%emt
00:00:01] [%clk 00:02:43]} g5 {[%emt 00:00:01] [%clk 00:03:03]} 13. Bd3 {[%emt
00:00:12] [%clk 00:02:34]} Nh6 {[%emt 00:00:21] [%clk 00:02:44]} 14. Qe2 {[%emt
00:00:11] [%clk 00:02:25]} Qa5 {[%emt 00:00:37] [%clk 00:02:10]} 15. fxg5 {[%emt
00:00:06] [%clk 00:02:20]} Ng8 {[%clk 00:02:11]} 16. g6 {[%emt 00:00:05] [%clk
00:02:16]} fxg6 {[%emt 00:00:11] [%clk 00:02:03]} 17. Bxg6+ {[%emt 00:00:02]
[%clk 00:02:16]} Kd7 {[%clk 00:02:04]} 18. b4 {[%emt 00:00:11] [%clk 00:02:07]}
Qa3 {[%emt 00:00:01] [%clk 00:02:06]} 19. Qd2 {[%emt 00:00:15] [%clk 00:01:53]}
Nh6 {[%emt 00:00:10] [%clk 00:01:57]} 20. Be3 {[%emt 00:00:02] [%clk 00:01:53]}
Rag8 {[%emt 00:00:04] [%clk 00:01:56]} 21. Bd3 {[%emt 00:00:09] [%clk 00:01:45]}
Nf7 {[%emt 00:00:28] [%clk 00:01:31]} 22. Bb5 {[%emt 00:00:10] [%clk 00:01:37]}
Rg3 {[%emt 00:00:47] [%clk 00:00:47]} 23. O-O {[%emt 00:00:10] [%clk 00:01:29]}
Rhg8 {[%clk 00:00:48]} 24. Rf2 {[%emt 00:00:04] [%clk 00:01:27]} Rxh3 {[%emt
00:00:08] [%clk 00:00:42]} 25. Rb1 {[%emt 00:00:35] [%clk 00:00:54]} Rxf3 {[%emt
00:00:28] [%clk 00:00:16]} 26. Rxf3 {[%emt 00:00:07] [%clk 00:00:49]} Nfxe5
{[%clk 00:00:17]} 27. Rff1 {[%emt 00:00:10] [%clk 00:00:40]} a6 {[%emt 00:00:05]
[%clk 00:00:15]} 28. Rb3 {[%emt 00:00:01] [%clk 00:00:41]} axb5 {[%emt 00:00:05]
[%clk 00:00:12]} 29. Rxa3 {[%emt 00:00:02] [%clk 00:00:40]} Nc4 {[%clk
00:00:14]} 30. Qc1 {[%emt 00:00:04] [%clk 00:00:38]} h4 {[%emt 00:00:03] [%clk
00:00:13]} 31. Rb3 {[%emt 00:00:09] [%clk 00:00:31]} h3 {[%emt 00:00:01] [%clk
00:00:14]} 32. Rf2 {[%clk 00:00:32]} Bh4 {[%emt 00:00:02] [%clk 00:00:14]} 33.
Re2 {[%emt 00:00:03] [%clk 00:00:31]} Rg3 {[%emt 00:00:06] [%clk 00:00:11]} 34.
Bf4 {[%emt 00:00:05] [%clk 00:00:29]} Rg4 {[%emt 00:00:01] [%clk 00:00:11]} 35.
Kh2 {[%emt 00:00:09] [%clk 00:00:22]} e5 {[%clk 00:00:13]} 36. Be3 {[%emt
00:00:12] [%clk 00:00:11]} Re4 {[%emt 00:00:06] [%clk 00:00:08]} 37. Rbb2 {[%emt
00:00:06] [%clk 00:00:08]} Nxb2 {[%emt 00:00:04] [%clk 00:00:06]} 38. Rxb2
{[%emt 00:00:02] [%clk 00:00:08]} Ne7 {[%emt 00:00:03] [%clk 00:00:05]} 39. Bg5
{[%emt 00:00:01] [%clk 00:00:08]} hxg2 {[%emt 00:00:04] [%clk 00:00:04]} 40.
Bxh4 {[%emt 00:00:02] [%clk 00:00:08]} Rxh4+ {[%clk 00:00:05]} 41. Kxg2 {[%emt
00:00:01] [%clk 00:00:09]} Nf5 {[%clk 00:00:07]} 42. Rf2 {[%emt 00:00:02] [%clk
00:00:09]} Rg4+ {[%emt 00:00:04] [%clk 00:00:05]} 43. Kh2 {[%emt 00:00:02] [%clk
00:00:09]} Ke6 {[%clk 00:00:07]} 44. Qf1 {[%emt 00:00:03] [%clk 00:00:07]} Rg5
{[%emt 00:00:01] [%clk 00:00:08]} 45. Qh3 {[%emt 00:00:03] [%clk 00:00:06]} e4
{[%emt 00:00:03] [%clk 00:00:08]} 46. Rg2 {[%emt 00:00:02] [%clk 00:00:05]} 1-0

[Site "Europe Echecs"]